{"text_format":"1","workbook":"xlsx","n_sheets":4,"sheets":["список","ГКРР","диаграммы","праздники 2021-2050"],"not_rendered":{"charts":0,"images":1,"macros":1,"external_links":1,"defined_names":14,"comments":0,"pivot_tables":0},"unopened":[],"bounds":{"document_bytes":16777216,"sheet_cells":100000,"rows_first":2000,"rows_last":500,"rows_between":2000,"halvings":0,"cell_chars":16384,"cell_head_chars":4096},"cells_cut":0,"cells_raw":0,"read":"whole","date_system":"1900"}

{"sheet":"список","index":0,"n_rows":33,"n_cols":9,"rows_kept":33,"cut":false,"hidden":false,"merged":[[1,1,1,3]]}
[]
[null,"Список детей"]
["№","Ф","И","О","пол","возраст","группа","Код нарушения","программа"]
[1,"Тарасов","Александр","Сергеевич",{"$f":"IF(RIGHT(Таблица4[[#This Row],[О]])=\"ч\",\"м\",\"д\")","v":"м"},"6-7 лет",10,"ТНР","Скоро в школу"]
[2,"Алехина","Мария","Дмитриевна",{"$f":"IF(RIGHT(Таблица4[[#This Row],[О]])=\"ч\",\"м\",\"д\")","v":"д"},"6-7 лет",10,"ТНР","Скоро в школу"]
[3,"Голикова","Алиса","Ильинична",{"$f":"IF(RIGHT(Таблица4[[#This Row],[О]])=\"ч\",\"м\",\"д\")","v":"д"},"6-7 лет",10,"ТНР","Скоро в школу"]
[4,"Лебедев","Олег","Фёдорович",{"$f":"IF(RIGHT(Таблица4[[#This Row],[О]])=\"ч\",\"м\",\"д\")","v":"м"},"6-7 лет",10,"ТНР","Скоро в школу"]
[5,"Николаева","Софья","Ярославовна",{"$f":"IF(RIGHT(Таблица4[[#This Row],[О]])=\"ч\",\"м\",\"д\")","v":"д"},"6-7 лет",10,"ТНР","Скоро в школу"]
[6,"Воронин","Георгий","Ярославович",{"$f":"IF(RIGHT(Таблица4[[#This Row],[О]])=\"ч\",\"м\",\"д\")","v":"м"},"6-7 лет",10,"ТНР","Скоро в школу"]
[7,"Новикова","Ника","Марковна",{"$f":"IF(RIGHT(Таблица4[[#This Row],[О]])=\"ч\",\"м\",\"д\")","v":"д"},"6-7 лет",10,"ТНР","Скоро в школу"]
[8,"Рябов","Артём","Ильич",{"$f":"IF(RIGHT(Таблица4[[#This Row],[О]])=\"ч\",\"м\",\"д\")","v":"м"},"6-7 лет",10,"ТНР","Скоро в школу"]
[9,"Смирнова","Александра","Тимуровна",{"$f":"IF(RIGHT(Таблица4[[#This Row],[О]])=\"ч\",\"м\",\"д\")","v":"д"},"6-7 лет",10,"ТНР","Скоро в школу"]
[10,"Васильева","Милана","Михайловна",{"$f":"IF(RIGHT(Таблица4[[#This Row],[О]])=\"ч\",\"м\",\"д\")","v":"д"},"6-7 лет",10,"ТНР","Скоро в школу"]
[11,"Большаков","Мирон","Владимирович",{"$f":"IF(RIGHT(Таблица4[[#This Row],[О]])=\"ч\",\"м\",\"д\")","v":"м"},"5-6 лет",12,"ЗПР","Монсики"]
[12,"Морозов","Тимур","Владимирович",{"$f":"IF(RIGHT(Таблица4[[#This Row],[О]])=\"ч\",\"м\",\"д\")","v":"м"},"5-6 лет",12,"ЗПР","Монсики"]
[13,"Новикова","Анастасия","Серафимовна",{"$f":"IF(RIGHT(Таблица4[[#This Row],[О]])=\"ч\",\"м\",\"д\")","v":"д"},"5-6 лет",12,"ЗПР","Монсики"]
[14,"Владимирова","Аделина","Александровна",{"$f":"IF(RIGHT(Таблица4[[#This Row],[О]])=\"ч\",\"м\",\"д\")","v":"д"},"5-6 лет",12,"ЗПР","Монсики"]
[15,"Семенов","Григорий","Алексеевич",{"$f":"IF(RIGHT(Таблица4[[#This Row],[О]])=\"ч\",\"м\",\"д\")","v":"м"},"5-6 лет",12,"ЗПР","Монсики"]
[16,"Крылова","Ксения","Сергеевна",{"$f":"IF(RIGHT(Таблица4[[#This Row],[О]])=\"ч\",\"м\",\"д\")","v":"д"},"5-6 лет",12,"ЗПР","Монсики"]
[17,"Жукова","Мария","Константиновна",{"$f":"IF(RIGHT(Таблица4[[#This Row],[О]])=\"ч\",\"м\",\"д\")","v":"д"},"5-6 лет",12,"ЗПР","Монсики"]
[18,"Лебедева","Анна","Ивановна",{"$f":"IF(RIGHT(Таблица4[[#This Row],[О]])=\"ч\",\"м\",\"д\")","v":"д"},"5-6 лет",12,"ЗПР","Монсики"]
[19,"Панов","Артемий","Григорьевич",{"$f":"IF(RIGHT(Таблица4[[#This Row],[О]])=\"ч\",\"м\",\"д\")","v":"м"},"5-6 лет",12,"ЗПР","Монсики"]
[20,"Ермаков","Даниил","Иванович",{"$f":"IF(RIGHT(Таблица4[[#This Row],[О]])=\"ч\",\"м\",\"д\")","v":"м"},"5-6 лет",12,"ЗПР","Монсики"]
[21,"Ермаков","Даниил","Иванович",{"$f":"IF(RIGHT(Таблица4[[#This Row],[О]])=\"ч\",\"м\",\"д\")","v":"м"},"4-5 лет",14,"РАС","Песочная страна"]
[22,"Ермаков","Даниил","Иванович",{"$f":"IF(RIGHT(Таблица4[[#This Row],[О]])=\"ч\",\"м\",\"д\")","v":"м"},"4-5 лет",14,"РАС","Песочная страна"]
[23,"Ермаков","Даниил","Иванович",{"$f":"IF(RIGHT(Таблица4[[#This Row],[О]])=\"ч\",\"м\",\"д\")","v":"м"},"4-5 лет",14,"РАС","Песочная страна"]
[24,"Ермаков","Даниил","Иванович",{"$f":"IF(RIGHT(Таблица4[[#This Row],[О]])=\"ч\",\"м\",\"д\")","v":"м"},"4-5 лет",14,"РАС","Песочная страна"]
[25,"Ермаков","Даниил","Иванович",{"$f":"IF(RIGHT(Таблица4[[#This Row],[О]])=\"ч\",\"м\",\"д\")","v":"м"},"4-5 лет",14,"РАС","Песочная страна"]
[26,"Ермаков","Даниил","Иванович",{"$f":"IF(RIGHT(Таблица4[[#This Row],[О]])=\"ч\",\"м\",\"д\")","v":"м"},"4-5 лет",14,"РАС","Песочная страна"]
[27,"Ермаков","Даниил","Иванович",{"$f":"IF(RIGHT(Таблица4[[#This Row],[О]])=\"ч\",\"м\",\"д\")","v":"м"},"4-5 лет",14,"РАС","Песочная страна"]
[28,"Ермаков","Даниил","Иванович",{"$f":"IF(RIGHT(Таблица4[[#This Row],[О]])=\"ч\",\"м\",\"д\")","v":"м"},"4-5 лет",14,"РАС","Песочная страна"]
[29,"Ермаков","Даниил","Иванович",{"$f":"IF(RIGHT(Таблица4[[#This Row],[О]])=\"ч\",\"м\",\"д\")","v":"м"},"4-5 лет",14,"РАС","Песочная страна"]
[30,"Ермаков","Даниил","Иванович",{"$f":"IF(RIGHT(Таблица4[[#This Row],[О]])=\"ч\",\"м\",\"д\")","v":"м"},"4-5 лет",14,"РАС","Песочная страна"]

{"sheet":"ГКРР","index":1,"n_rows":56,"n_cols":317,"rows_kept":56,"cut":false,"hidden":false,"merged":[[48,4,48,7],[4,311,4,313],[17,5,17,7],[30,5,30,7],[43,5,43,7],[45,4,45,7],[46,4,46,7],[0,5,0,7],[3,289,3,294],[2,1,2,7],[2,8,2,37],[2,39,2,69],[2,71,2,100],[2,102,2,132],[2,134,2,164],[2,166,2,193],[2,195,2,225],[2,227,2,256],[2,258,2,288],[3,1,3,7]]}
["год","м",null,"Печатать",null,"2023-09-01",null,null,"2021-09-01","2021-10-01","2021-11-01","2021-12-01","2022-01-01","2022-02-01","2022-03-01","2022-04-01","2022-05-01","2022-06-01","2022-07-01","2022-08-01","2022-09-01","2022-10-01","2022-11-01","2022-12-01","2023-01-01","2023-02-01","2023-03-01","2023-04-01","2023-05-01","2023-06-01","2023-07-01","2023-08-01","2023-09-01","2023-10-01"]
[2021,9]
[null,"месяц",null,null,null,null,null,null,{"$f":"I5","v":"2021-09-01"},null,null,null,null,null,null,null,null,null,null,null,null,null,null,null,null,null,null,null,null,null,null,null,null,null,null,null,null,null,null,{"$f":"AN5","v":"2021-10-01"},null,null,null,null,null,null,null,null,null,null,null,null,null,null,null,null,null,null,null,null,null,null,null,null,null,null,null,null,null,null,null,{"$f":"BT5","v":"2021-11-01"},null,null,null,null,null,null,null,null,null,null,null,null,null,null,null,null,null,null,null,null,null,null,null,null,null,null,null,null,null,null,{"$f":"CY5","v":"2021-12-01"},null,null,null,null,null,null,null,null,null,null,null,null,null,null,null,null,null,null,null,null,null,null,null,null,null,null,null,null,null,null,null,{"$f":"EE5","v":"2022-01-01"},null,null,null,null,null,null,null,null,null,null,null,null,null,null,null,null,null,null,null,null,null,null,null,null,null,null,null,null,null,null,null,{"$f":"FK5","v":"2022-02-01"},null,null,null,null,null,null,null,null,null,null,null,null,null,null,null,null,null,null,null,null,null,null,null,null,null,null,null,null,{"$f":"GN5","v":"2022-03-01"},null,null,null,null,null,null,null,null,null,null,null,null,null,null,null,null,null,null,null,null,null,null,null,null,null,null,null,null,null,null,null,{"$f":"HT5","v":"2022-04-01"},null,null,null,null,null,null,null,null,null,null,null,null,null,null,null,null,null,null,null,null,null,null,null,null,null,null,null,null,null,null,{"$f":"IY5","v":"2022-05-01"}]
[null,"день недели",null,null,null,null,null,null,{"$f":"TEXT(I5,\"ДДД\")","v":"Ср"},{"$f":"TEXT(J5,\"ДДД\")","v":"Чт"},"Пт","Сб","Вс","Пн","Вт","Ср","Чт","Пт","Сб","Вс","Пн","Вт","Ср","Чт","Пт","Сб","Вс","Пн","Вт","Ср","Чт","Пт","Сб","Вс","Пн","Вт","Ср","Чт",null,"Пт","Сб","Вс","Пн","Вт","Ср","Чт","Пт","Сб","Вс","Пн","Вт","Ср","Чт","Пт","Сб","Вс","Пн","Вт","Ср","Чт","Пт","Сб","Вс","Пн","Вт","Ср","Чт","Пт","Сб","Вс",null,"Пн","Вт","Ср",{"$f":"TEXT(BW5,\"ДДД\")","v":"Чт"},"Пт","Сб","Вс","Пн","Вт","Ср","Чт","Пт","Сб","Вс","Пн","Вт","Ср","Чт","Пт","Сб","Вс","Пн","Вт","Ср","Чт","Пт","Сб","Вс","Пн","Вт",null,"Ср","Чт","Пт","Сб","Вс","Пн","Вт","Ср","Чт","Пт","Сб","Вс","Пн","Вт","Ср","Чт","Пт","Сб","Вс","Пн","Вт","Ср","Чт","Пт","Сб","Вс","Пн","Вт","Ср","Чт","Пт",null,"Сб","Вс","Пн","Вт",{"$f":"TEXT(EI5,\"ДДД\")","v":"Ср"},"Чт","Пт","Сб","Вс","Пн","Вт","Ср","Чт","Пт","Сб","Вс","Пн","Вт","Ср","Чт","Пт","Сб","Вс","Пн","Вт","Ср","Чт","Пт","Сб","Вс","Пн",null,"Вт","Ср","Чт","Пт","Сб","Вс","Пн","Вт","Ср","Чт","Пт","Сб","Вс","Пн","Вт","Ср","Чт","Пт","Сб","Вс","Пн","Вт","Ср","Чт","Пт","Сб","Вс","Пн",null,"Вт","Ср","Чт","Пт","Сб","Вс","Пн","Вт","Ср","Чт","Пт","Сб","Вс","Пн","Вт","Ср","Чт","Пт","Сб","Вс","Пн","Вт","Ср","Чт","Пт","Сб","Вс","Пн","Вт","Ср","Чт",null,"Пт","Сб","Вс","Пн","Вт","Ср","Чт","Пт","Сб","Вс","Пн","Вт","Ср","Чт","Пт","Сб","Вс","Пн","Вт","Ср","Чт","Пт","Сб","Вс","Пн","Вт","Ср","Чт","Пт","Сб",null,"Вс","Пн","Вт","Ср","Чт","Пт","Сб","Вс","Пн","Вт","Ср","Чт","Пт","Сб","Вс","Пн","Вт","Ср","Чт","Пт","Сб","Вс","Пн","Вт","Ср","Чт","Пт","Сб","Вс","Пн","Вт","Итого"]
[null,"номер","группа","код ребенка","пол","возраст","код нарушения","Программа\n сопровождения",{"$f":"DATE($A$2,$B$2,1)","v":"2021-09-01"},{"$f":"I5+1","v":"2021-09-02"},{"$f":"J5+1","v":"2021-09-03"},"2021-09-04","2021-09-05","2021-09-06","2021-09-07","2021-09-08","2021-09-09","2021-09-10","2021-09-11","2021-09-12","2021-09-13","2021-09-14","2021-09-15","2021-09-16","2021-09-17","2021-09-18","2021-09-19","2021-09-20","2021-09-21","2021-09-22","2021-09-23","2021-09-24","2021-09-25","2021-09-26","2021-09-27","2021-09-28","2021-09-29",{"$f":"AK5+1","v":"2021-09-30"},null,{"$f":"AL5+1","v":"2021-10-01"},"2021-10-02","2021-10-03","2021-10-04","2021-10-05","2021-10-06","2021-10-07","2021-10-08","2021-10-09","2021-10-10","2021-10-11","2021-10-12","2021-10-13","2021-10-14","2021-10-15","2021-10-16","2021-10-17","2021-10-18","2021-10-19","2021-10-20","2021-10-21","2021-10-22","2021-10-23","2021-10-24","2021-10-25","2021-10-26","2021-10-27","2021-10-28","2021-10-29","2021-10-30","2021-10-31",null,{"$f":"BR5+1","v":"2021-11-01"},"2021-11-02","2021-11-03",{"$f":"BV5+1","v":"2021-11-04"},"2021-11-05","2021-11-06","2021-11-07","2021-11-08","2021-11-09","2021-11-10","2021-11-11","2021-11-12","2021-11-13","2021-11-14","2021-11-15","2021-11-16","2021-11-17","2021-11-18","2021-11-19","2021-11-20","2021-11-21","2021-11-22","2021-11-23","2021-11-24","2021-11-25","2021-11-26","2021-11-27","2021-11-28","2021-11-29","2021-11-30",null,{"$f":"CW5+1","v":"2021-12-01"},"2021-12-02","2021-12-03","2021-12-04","2021-12-05","2021-12-06","2021-12-07","2021-12-08","2021-12-09","2021-12-10","2021-12-11","2021-12-12","2021-12-13","2021-12-14","2021-12-15","2021-12-16","2021-12-17","2021-12-18","2021-12-19","2021-12-20","2021-12-21","2021-12-22","2021-12-23","2021-12-24","2021-12-25","2021-12-26","2021-12-27","2021-12-28","2021-12-29","2021-12-30","2021-12-31",null,{"$f":"EC5+1","v":"2022-01-01"},"2022-01-02","2022-01-03","2022-01-04",{"$f":"EH5+1","v":"2022-01-05"},"2022-01-06","2022-01-07","2022-01-08","2022-01-09","2022-01-10","2022-01-11","2022-01-12","2022-01-13","2022-01-14","2022-01-15","2022-01-16","2022-01-17","2022-01-18","2022-01-19","2022-01-20","2022-01-21","2022-01-22","2022-01-23","2022-01-24","2022-01-25","2022-01-26","2022-01-27","2022-01-28","2022-01-29","2022-01-30","2022-01-31",null,{"$f":"FI5+1","v":"2022-02-01"},"2022-02-02","2022-02-03","2022-02-04","2022-02-05","2022-02-06","2022-02-07","2022-02-08","2022-02-09","2022-02-10","2022-02-11","2022-02-12","2022-02-13","2022-02-14","2022-02-15","2022-02-16","2022-02-17","2022-02-18","2022-02-19","2022-02-20","2022-02-21","2022-02-22","2022-02-23","2022-02-24","2022-02-25","2022-02-26","2022-02-27","2022-02-28",null,{"$f":"GL5+1","v":"2022-03-01"},"2022-03-02","2022-03-03","2022-03-04","2022-03-05","2022-03-06","2022-03-07",{"$f":"GT5+1","v":"2022-03-08"},"2022-03-09","2022-03-10","2022-03-11","2022-03-12","2022-03-13","2022-03-14","2022-03-15","2022-03-16","2022-03-17","2022-03-18","2022-03-19","2022-03-20","2022-03-21","2022-03-22","2022-03-23","2022-03-24","2022-03-25","2022-03-26","2022-03-27","2022-03-28","2022-03-29","2022-03-30","2022-03-31",null,{"$f":"HR5+1","v":"2022-04-01"},"2022-04-02","2022-04-03","2022-04-04","2022-04-05","2022-04-06","2022-04-07","2022-04-08","2022-04-09","2022-04-10","2022-04-11","2022-04-12","2022-04-13","2022-04-14","2022-04-15","2022-04-16","2022-04-17","2022-04-18","2022-04-19","2022-04-20","2022-04-21","2022-04-22","2022-04-23","2022-04-24","2022-04-25","2022-04-26","2022-04-27","2022-04-28","2022-04-29","2022-04-30",null,{"$f":"IW5+1","v":"2022-05-01"},"2022-05-02","2022-05-03","2022-05-04","2022-05-05","2022-05-06","2022-05-07","2022-05-08",{"$f":"JF5+1","v":"2022-05-09"},"2022-05-10","2022-05-11","2022-05-12","2022-05-13","2022-05-14","2022-05-15","2022-05-16","2022-05-17","2022-05-18","2022-05-19","2022-05-20","2022-05-21","2022-05-22","2022-05-23","2022-05-24","2022-05-25","2022-05-26","2022-05-27","2022-05-28","2022-05-29","2022-05-30","2022-05-31","присутствовал","отсутствовал","больничный","итого занятий по плану","итого пропущено","% освоения",null,null,null,null,null,null,null,null,"подсчет по годам","кол-во детей",null,null,"группы","кол-во занятий","кол-во детей",null,"РАСПИСАНИЕ"]
["сен",1,{"$f":"VLOOKUP(B6,[1]!Таблица4[#Data],7)","v":10},{"$f":"CONCATENATE(LEFT([1]список!B4),LEFT([1]список!C4),LEFT([1]список!D4))","v":"ТАС"},{"$f":"VLOOKUP(B6,[1]!Таблица4[#Data],5)","v":"м"},{"$f":"VLOOKUP(B6,[1]!Таблица4[#Data],6)","v":"6-7 лет"},{"$f":"VLOOKUP(B6,[1]!Таблица4[#Data],8)","v":"ТНР"},{"$f":"VLOOKUP(B6,[1]!Таблица4[#Data],9)","v":"Скоро в школу"},null,null,null,null,null,null,null,null,null,null,null,null,null,null,null,null,null,null,null,null,null,null,null,null,null,null,null,null,null,null,null,null,null,null,null,null,null,null,null,null,null,null,null,null,null,null,null,null,null,null,null,null,null,null,null,null,null,null,null,null,null,null,null,null,null,null,null,null,null,null,null,null,null,null,null,null,null,null,null,null,null,null,null,null,null,null,null,null,null,null,null,null,null,null,null,null,null,null,null,null,null,null,null,null,null,null,null,null,null,null,null,null,null,null,null,null,null,null,null,null,null,null,null,null,null,null,null,null,null,null,null,null,null,null,null,null,null,null,null,null,null,null,null,null,null,null,null,null,null,null,null,null,null,null,null,null,null,null,null,null,null,null,null,null,null,null,null,null,null,null,null,null,null,null,null,null,null,null,null,null,null,null,null,null,null,null,null,null,null,null,null,null,null,null,null,null,null,null,null,null,null,null,null,null,null,null,null,null,null,null,null,null,null,null,null,null,null,null,null,null,null,null,null,null,null,null,null,null,null,null,null,null,null,null,null,null,null,null,null,null,null,null,null,null,null,null,null,null,null,null,null,null,null,null,null,null,null,null,null,null,null,null,null,null,null,null,null,null,null,null,null,null,null,null,null,null,null,null,null,null,null,{"$f":"COUNTIF(I6:KC6,\"п\")","v":0},{"$f":"COUNTIF(I6:KC6,\"н\")","v":0},{"$f":"COUNTIF(I6:KC6,\"б\")","v":0},{"$f":"SUM(KD6:KF6)","v":0},{"$f":"SUM(KE6:KF6)","v":0},{"$f":"IFERROR(KD6/KG6*100%,\"\")","v":""},null,null,null,null,null,null,null,null,"1-2 года",{"$f":"COUNTIF($F$6:$F$44,Таблица1313[[#This Row],[подсчет по годам]])","v":0},null,null,"ТНР",null,{"$f":"COUNTIF(G6:$G$44,Таблица17[[#This Row],[группы]])","v":11},null,10,"Пн","Пт"]
["окт",2,{"$f":"VLOOKUP(B7,[1]!Таблица4[#Data],7)","v":10},{"$f":"CONCATENATE(LEFT([1]список!B5),LEFT([1]список!C5),LEFT([1]список!D5))","v":"АМД"},{"$f":"VLOOKUP(B7,[1]!Таблица4[#Data],5)","v":"д"},{"$f":"VLOOKUP(B7,[1]!Таблица4[#Data],6)","v":"6-7 лет"},{"$f":"VLOOKUP(B7,[1]!Таблица4[#Data],8)","v":"ТНР"},{"$f":"VLOOKUP(B7,[1]!Таблица4[#Data],9)","v":"Скоро в школу"},null,null,null,null,null,null,null,null,null,null,null,null,null,null,null,null,null,null,null,null,null,null,null,null,null,null,null,null,null,null,null,null,null,null,null,null,null,null,null,null,null,null,null,null,null,null,null,null,null,null,null,null,null,null,null,null,null,null,null,null,null,null,null,null,null,null,null,null,null,null,null,null,null,null,null,null,null,null,null,null,null,null,null,null,null,null,null,null,null,null,null,null,null,null,null,null,null,null,null,null,null,null,null,null,null,null,null,null,null,null,null,null,null,null,null,null,null,null,null,null,null,null,null,null,null,null,null,null,null,null,null,null,null,null,null,null,null,null,null,null,null,null,null,null,null,null,null,null,null,null,null,null,null,null,null,null,null,null,null,null,null,null,null,null,null,null,null,null,null,null,null,null,null,null,null,null,null,null,null,null,null,null,null,null,null,null,null,null,null,null,null,null,null,null,null,null,null,null,null,null,null,null,null,null,null,null,null,null,null,null,null,null,null,null,null,null,null,null,null,null,null,null,null,null,null,null,null,null,null,null,null,null,null,null,null,null,null,null,null,null,null,null,null,null,null,null,null,null,null,null,null,null,null,null,null,null,null,null,null,null,null,null,null,null,null,null,null,null,null,null,null,null,null,null,null,null,null,null,null,null,null,0,0,0,{"$f":"SUM(KD7:KF7)","v":0},{"$f":"SUM(KE7:KF7)","v":0},{"$f":"IFERROR(KD7/KG7*100%,\"\")","v":""},null,null,null,null,null,null,null,null,"2-3 года",{"$f":"COUNTIF($F$6:$F$44,Таблица1313[[#This Row],[подсчет по годам]])","v":0},null,null,"ЗПР",null,{"$f":"COUNTIF(G7:$G$44,Таблица17[[#This Row],[группы]])","v":10},null,11,"Ср","ПТ",null,null,{"$f":"MATCH(I$4,INDEX($KZ$6:$LB$18,MATCH($C6,$KZ$6:$KZ$18,),),)","v":{"$error":"#N/A"}}]
["ноя",3,{"$f":"VLOOKUP(B8,[1]!Таблица4[#Data],7)","v":10},{"$f":"CONCATENATE(LEFT([1]список!B6),LEFT([1]список!C6),LEFT([1]список!D6))","v":"ГАИ"},{"$f":"VLOOKUP(B8,[1]!Таблица4[#Data],5)","v":"д"},{"$f":"VLOOKUP(B8,[1]!Таблица4[#Data],6)","v":"6-7 лет"},{"$f":"VLOOKUP(B8,[1]!Таблица4[#Data],8)","v":"ТНР"},{"$f":"VLOOKUP(B8,[1]!Таблица4[#Data],9)","v":"Скоро в школу"},null,null,null,null,null,null,null,null,null,null,null,null,null,null,null,null,null,null,null,null,null,null,null,null,null,null,null,null,null,null,null,null,null,null,null,null,null,null,null,null,null,null,null,null,null,null,null,null,null,null,null,null,null,null,null,null,null,null,null,null,null,null,null,null,null,null,null,null,null,null,null,null,null,null,null,null,null,null,null,null,null,null,null,null,null,null,null,null,null,null,null,null,null,null,null,null,null,null,null,null,null,null,null,null,null,null,null,null,null,null,null,null,null,null,null,null,null,null,null,null,null,null,null,null,null,null,null,null,null,null,null,null,null,null,null,null,null,null,null,null,null,null,null,null,null,null,null,null,null,null,null,null,null,null,null,null,null,null,null,null,null,null,null,null,null,null,null,null,null,null,null,null,null,null,null,null,null,null,null,null,null,null,null,null,null,null,null,null,null,null,null,null,null,null,null,null,null,null,null,null,null,null,null,null,null,null,null,null,null,null,null,null,null,null,null,null,null,null,null,null,null,null,null,null,null,null,null,null,null,null,null,null,null,null,null,null,null,null,null,null,null,null,null,null,null,null,null,null,null,null,null,null,null,null,null,null,null,null,null,null,null,null,null,null,null,null,null,null,null,null,null,null,null,null,null,null,null,null,null,null,null,0,0,0,0,0,"",null,null,null,null,null,null,null,null,"3-4 года",{"$f":"COUNTIF($F$6:$F$44,Таблица1313[[#This Row],[подсчет по годам]])","v":0},null,null,"ОО",null,{"$f":"COUNTIF(G8:$G$44,Таблица17[[#This Row],[группы]])","v":0},null,12,"Вт","ЧТ"]
["дек",4,{"$f":"VLOOKUP(B9,[1]!Таблица4[#Data],7)","v":10},{"$f":"CONCATENATE(LEFT([1]список!B7),LEFT([1]список!C7),LEFT([1]список!D7))","v":"ЛОФ"},{"$f":"VLOOKUP(B9,[1]!Таблица4[#Data],5)","v":"м"},{"$f":"VLOOKUP(B9,[1]!Таблица4[#Data],6)","v":"6-7 лет"},{"$f":"VLOOKUP(B9,[1]!Таблица4[#Data],8)","v":"ТНР"},{"$f":"VLOOKUP(B9,[1]!Таблица4[#Data],9)","v":"Скоро в школу"},null,null,null,null,null,null,null,null,null,null,null,null,null,null,null,null,null,null,null,null,null,null,null,null,null,null,null,null,null,null,null,null,null,null,null,null,null,null,null,null,null,null,null,null,null,null,null,null,null,null,null,null,null,null,null,null,null,null,null,null,null,null,null,null,null,null,null,null,null,null,null,null,null,null,null,null,null,null,null,null,null,null,null,null,null,null,null,null,null,null,null,null,null,null,null,null,null,null,null,null,null,null,null,null,null,null,null,null,null,null,null,null,null,null,null,null,null,null,null,null,null,null,null,null,null,null,null,null,null,null,null,null,null,null,null,null,null,null,null,null,null,null,null,null,null,null,null,null,null,null,null,null,null,null,null,null,null,null,null,null,null,null,null,null,null,null,null,null,null,null,null,null,null,null,null,null,null,null,null,null,null,null,null,null,null,null,null,null,null,null,null,null,null,null,null,null,null,null,null,null,null,null,null,null,null,null,null,null,null,null,null,null,null,null,null,null,null,null,null,null,null,null,null,null,null,null,null,null,null,null,null,null,null,null,null,null,null,null,null,null,null,null,null,null,null,null,null,null,null,null,null,null,null,null,null,null,null,null,null,null,null,null,null,null,null,null,null,null,null,null,null,null,null,null,null,null,null,null,null,null,null,0,0,0,0,0,"",null,null,null,null,null,null,null,null,"4-5 лет",{"$f":"COUNTIF($F$6:$F$44,Таблица1313[[#This Row],[подсчет по годам]])","v":10},null,null,"итог",null,{"$f":"COUNTIF(G9:$G$44,Таблица17[[#This Row],[группы]])","v":0}]
["дек",4,{"$f":"VLOOKUP(B10,[1]!Таблица4[#Data],7)","v":10},{"$f":"CONCATENATE(LEFT([1]список!B8),LEFT([1]список!C8),LEFT([1]список!D8))","v":"НСЯ"},{"$f":"VLOOKUP(B10,[1]!Таблица4[#Data],5)","v":"м"},{"$f":"VLOOKUP(B10,[1]!Таблица4[#Data],6)","v":"6-7 лет"},{"$f":"VLOOKUP(B10,[1]!Таблица4[#Data],8)","v":"ТНР"},{"$f":"VLOOKUP(B10,[1]!Таблица4[#Data],9)","v":"Скоро в школу"},null,null,null,null,null,null,null,null,null,null,null,null,null,null,null,null,null,null,null,null,null,null,null,null,null,null,null,null,null,null,null,null,null,null,null,null,null,null,null,null,null,null,null,null,null,null,null,null,null,null,null,null,null,null,null,null,null,null,null,null,null,null,null,null,null,null,null,null,null,null,null,null,null,null,null,null,null,null,null,null,null,null,null,null,null,null,null,null,null,null,null,null,null,null,null,null,null,null,null,null,null,null,null,null,null,null,null,null,null,null,null,null,null,null,null,null,null,null,null,null,null,null,null,null,null,null,null,null,null,null,null,null,null,null,null,null,null,null,null,null,null,null,null,null,null,null,null,null,null,null,null,null,null,null,null,null,null,null,null,null,null,null,null,null,null,null,null,null,null,null,null,null,null,null,null,null,null,null,null,null,null,null,null,null,null,null,null,null,null,null,null,null,null,null,null,null,null,null,null,null,null,null,null,null,null,null,null,null,null,null,null,null,null,null,null,null,null,null,null,null,null,null,null,null,null,null,null,null,null,null,null,null,null,null,null,null,null,null,null,null,null,null,null,null,null,null,null,null,null,null,null,null,null,null,null,null,null,null,null,null,null,null,null,null,null,null,null,null,null,null,null,null,null,null,null,null,null,null,null,null,null,0,0,0,0,0,"",null,null,null,null,null,null,null,null,"5-6 лет",{"$f":"COUNTIF($F$6:$F$44,Таблица1313[[#This Row],[подсчет по годам]])","v":10},null,null,"УО",null,{"$f":"COUNTIF(G10:$G$44,Таблица17[[#This Row],[группы]])","v":0},null,13,"Ср","Пт"]
["янв",5,{"$f":"VLOOKUP(B11,[1]!Таблица4[#Data],7)","v":10},{"$f":"CONCATENATE(LEFT([1]список!B9),LEFT([1]список!C9),LEFT([1]список!D9))","v":"ВГЯ"},{"$f":"VLOOKUP(B11,[1]!Таблица4[#Data],5)","v":"д"},{"$f":"VLOOKUP(B11,[1]!Таблица4[#Data],6)","v":"6-7 лет"},{"$f":"VLOOKUP(B11,[1]!Таблица4[#Data],8)","v":"ТНР"},{"$f":"VLOOKUP(B11,[1]!Таблица4[#Data],9)","v":"Скоро в школу"},null,null,null,null,null,null,null,null,null,null,null,null,null,null,null,null,null,null,null,null,null,null,null,null,null,null,null,null,null,null,null,null,null,null,null,null,null,null,null,null,null,null,null,null,null,null,null,null,null,null,null,null,null,null,null,null,null,null,null,null,null,null,null,null,null,null,null,null,null,null,null,null,null,null,null,null,null,null,null,null,null,null,null,null,null,null,null,null,null,null,null,null,null,null,null,null,null,null,null,null,null,null,null,null,null,null,null,null,null,null,null,null,null,null,null,null,null,null,null,null,null,null,null,null,null,null,null,null,null,null,null,null,null,null,null,null,null,null,null,null,null,null,null,null,null,null,null,null,null,null,null,null,null,null,null,null,null,null,null,null,null,null,null,null,null,null,null,null,null,null,null,null,null,null,null,null,null,null,null,null,null,null,null,null,null,null,null,null,null,null,null,null,null,null,null,null,null,null,null,null,null,null,null,null,null,null,null,null,null,null,null,null,null,null,null,null,null,null,null,null,null,null,null,null,null,null,null,null,null,null,null,null,null,null,null,null,null,null,null,null,null,null,null,null,null,null,null,null,null,null,null,null,null,null,null,null,null,null,null,null,null,null,null,null,null,null,null,null,null,null,null,null,null,null,null,null,null,null,null,null,null,0,0,0,0,0,"",null,null,null,null,null,null,null,null,"6-7 лет",{"$f":"COUNTIF($F$6:$F$44,Таблица1313[[#This Row],[подсчет по годам]])","v":11},null,null,"РАС",null,{"$f":"COUNTIF(G11:$G$44,Таблица17[[#This Row],[группы]])","v":10},null,14,"Пн","Ср"]
["фев",6,{"$f":"VLOOKUP(B12,[1]!Таблица4[#Data],7)","v":10},{"$f":"CONCATENATE(LEFT([1]список!B10),LEFT([1]список!C10),LEFT([1]список!D10))","v":"ННМ"},{"$f":"VLOOKUP(B12,[1]!Таблица4[#Data],5)","v":"м"},{"$f":"VLOOKUP(B12,[1]!Таблица4[#Data],6)","v":"6-7 лет"},{"$f":"VLOOKUP(B12,[1]!Таблица4[#Data],8)","v":"ТНР"},{"$f":"VLOOKUP(B12,[1]!Таблица4[#Data],9)","v":"Скоро в школу"},null,null,null,null,null,null,null,null,null,null,null,null,null,null,null,null,null,null,null,null,null,null,null,null,null,null,null,null,null,null,null,null,null,null,null,null,null,null,null,null,null,null,null,null,null,null,null,null,null,null,null,null,null,null,null,null,null,null,null,null,null,null,null,null,null,null,null,null,null,null,null,null,null,null,null,null,null,null,null,null,null,null,null,null,null,null,null,null,null,null,null,null,null,null,null,null,null,null,null,null,null,null,null,null,null,null,null,null,null,null,null,null,null,null,null,null,null,null,null,null,null,null,null,null,null,null,null,null,null,null,null,null,null,null,null,null,null,null,null,null,null,null,null,null,null,null,null,null,null,null,null,null,null,null,null,null,null,null,null,null,null,null,null,null,null,null,null,null,null,null,null,null,null,null,null,null,null,null,null,null,null,null,null,null,null,null,null,null,null,null,null,null,null,null,null,null,null,null,null,null,null,null,null,null,null,null,null,null,null,null,null,null,null,null,null,null,null,null,null,null,null,null,null,null,null,null,null,null,null,null,null,null,null,null,null,null,null,null,null,null,null,null,null,null,null,null,null,null,null,null,null,null,null,null,null,null,null,null,null,null,null,null,null,null,null,null,null,null,null,null,null,null,null,null,null,null,null,null,null,null,null,0,0,0,0,0,"",null,null,null,null,null,null,null,null,"ИТОГ",{"$f":"SUM(KS6:KS11)","v":31},null,null,"НЗ",null,{"$f":"COUNTIF(G12:$G$44,Таблица17[[#This Row],[группы]])","v":0}]
["мар",7,{"$f":"VLOOKUP(B13,[1]!Таблица4[#Data],7)","v":10},{"$f":"CONCATENATE(LEFT([1]список!B11),LEFT([1]список!C11),LEFT([1]список!D11))","v":"РАИ"},{"$f":"VLOOKUP(B13,[1]!Таблица4[#Data],5)","v":"д"},{"$f":"VLOOKUP(B13,[1]!Таблица4[#Data],6)","v":"6-7 лет"},{"$f":"VLOOKUP(B13,[1]!Таблица4[#Data],8)","v":"ТНР"},{"$f":"VLOOKUP(B13,[1]!Таблица4[#Data],9)","v":"Скоро в школу"},null,null,null,null,null,null,null,null,null,null,null,null,null,null,null,null,null,null,null,null,null,null,null,null,null,null,null,null,null,null,null,null,null,null,null,null,null,null,null,null,null,null,null,null,null,null,null,null,null,null,null,null,null,null,null,null,null,null,null,null,null,null,null,null,null,null,null,null,null,null,null,null,null,null,null,null,null,null,null,null,null,null,null,null,null,null,null,null,null,null,null,null,null,null,null,null,null,null,null,null,null,null,null,null,null,null,null,null,null,null,null,null,null,null,null,null,null,null,null,null,null,null,null,null,null,null,null,null,null,null,null,null,null,null,null,null,null,null,null,null,null,null,null,null,null,null,null,null,null,null,null,null,null,null,null,null,null,null,null,null,null,null,null,null,null,null,null,null,null,null,null,null,null,null,null,null,null,null,null,null,null,null,null,null,null,null,null,null,null,null,null,null,null,null,null,null,null,null,null,null,null,null,null,null,null,null,null,null,null,null,null,null,null,null,null,null,null,null,null,null,null,null,null,null,null,null,null,null,null,null,null,null,null,null,null,null,null,null,null,null,null,null,null,null,null,null,null,null,null,null,null,null,null,null,null,null,null,null,null,null,null,null,null,null,null,null,null,null,null,null,null,null,null,null,null,null,null,null,null,null,null,0,0,0,0,0,"",null,null,null,null,null,null,null,null,null,{"$f":"COUNTIF($F$6:$F$44,Таблица1313[[#This Row],[подсчет по годам]])","v":0},null,null,"НС",null,{"$f":"COUNTIF(G13:$G$44,Таблица17[[#This Row],[группы]])","v":0}]
["апр",8,{"$f":"VLOOKUP(B14,[1]!Таблица4[#Data],7)","v":10},{"$f":"CONCATENATE(LEFT([1]список!B12),LEFT([1]список!C12),LEFT([1]список!D12))","v":"САТ"},{"$f":"VLOOKUP(B14,[1]!Таблица4[#Data],5)","v":"м"},{"$f":"VLOOKUP(B14,[1]!Таблица4[#Data],6)","v":"6-7 лет"},{"$f":"VLOOKUP(B14,[1]!Таблица4[#Data],8)","v":"ТНР"},{"$f":"VLOOKUP(B14,[1]!Таблица4[#Data],9)","v":"Скоро в школу"},null,null,null,null,null,null,null,null,null,null,null,null,null,null,null,null,null,null,null,null,null,null,null,null,null,null,null,null,null,null,null,null,null,null,null,null,null,null,null,null,null,null,null,null,null,null,null,null,null,null,null,null,null,null,null,null,null,null,null,null,null,null,null,null,null,null,null,null,null,null,null,null,null,null,null,null,null,null,null,null,null,null,null,null,null,null,null,null,null,null,null,null,null,null,null,null,null,null,null,null,null,null,null,null,null,null,null,null,null,null,null,null,null,null,null,null,null,null,null,null,null,null,null,null,null,null,null,null,null,null,null,null,null,null,null,null,null,null,null,null,null,null,null,null,null,null,null,null,null,null,null,null,null,null,null,null,null,null,null,null,null,null,null,null,null,null,null,null,null,null,null,null,null,null,null,null,null,null,null,null,null,null,null,null,null,null,null,null,null,null,null,null,null,null,null,null,null,null,null,null,null,null,null,null,null,null,null,null,null,null,null,null,null,null,null,null,null,null,null,null,null,null,null,null,null,null,null,null,null,null,null,null,null,null,null,null,null,null,null,null,null,null,null,null,null,null,null,null,null,null,null,null,null,null,null,null,null,null,null,null,null,null,null,null,null,null,null,null,null,null,null,null,null,null,null,null,null,null,null,null,null,0,0,0,0,0,"",null,null,null,null,null,null,null,null,null,null,null,null,"ОДА",{"$f":"KD26","v":0},{"$f":"COUNTIF(G14:$G$44,Таблица17[[#This Row],[группы]])","v":0}]
["май",9,{"$f":"VLOOKUP(B15,[1]!Таблица4[#Data],7)","v":10},{"$f":"CONCATENATE(LEFT([1]список!B13),LEFT([1]список!C13),LEFT([1]список!D13))","v":"ВММ"},{"$f":"VLOOKUP(B15,[1]!Таблица4[#Data],5)","v":"д"},{"$f":"VLOOKUP(B15,[1]!Таблица4[#Data],6)","v":"6-7 лет"},{"$f":"VLOOKUP(B15,[1]!Таблица4[#Data],8)","v":"ТНР"},{"$f":"VLOOKUP(B15,[1]!Таблица4[#Data],9)","v":"Скоро в школу"},null,null,null,null,null,null,null,null,null,null,null,null,null,null,null,null,null,null,null,null,null,null,null,null,null,null,null,null,null,null,null,null,null,null,null,null,null,null,null,null,null,null,null,null,null,null,null,null,null,null,null,null,null,null,null,null,null,null,null,null,null,null,null,null,null,null,null,null,null,null,null,null,null,null,null,null,null,null,null,null,null,null,null,null,null,null,null,null,null,null,null,null,null,null,null,null,null,null,null,null,null,null,null,null,null,null,null,null,null,null,null,null,null,null,null,null,null,null,null,null,null,null,null,null,null,null,null,null,null,null,null,null,null,null,null,null,null,null,null,null,null,null,null,null,null,null,null,null,null,null,null,null,null,null,null,null,null,null,null,null,null,null,null,null,null,null,null,null,null,null,null,null,null,null,null,null,null,null,null,null,null,null,null,null,null,null,null,null,null,null,null,null,null,null,null,null,null,null,null,null,null,null,null,null,null,null,null,null,null,null,null,null,null,null,null,null,null,null,null,null,null,null,null,null,null,null,null,null,null,null,null,null,null,null,null,null,null,null,null,null,null,null,null,null,null,null,null,null,null,null,null,null,null,null,null,null,null,null,null,null,null,null,null,null,null,null,null,null,null,null,null,null,null,null,null,null,null,null,null,null,null,0,0,0,0,0,""]
[null,10,{"$f":"VLOOKUP(B16,[1]!Таблица4[#Data],7)","v":10},{"$f":"CONCATENATE(LEFT([1]список!B14),LEFT([1]список!C14),LEFT([1]список!D14))","v":"БМВ"},{"$f":"VLOOKUP(B16,[1]!Таблица4[#Data],5)","v":"д"},{"$f":"VLOOKUP(B16,[1]!Таблица4[#Data],6)","v":"6-7 лет"},{"$f":"VLOOKUP(B16,[1]!Таблица4[#Data],8)","v":"ТНР"},{"$f":"VLOOKUP(B16,[1]!Таблица4[#Data],9)","v":"Скоро в школу"},null,null,null,null,null,null,null,null,null,null,null,null,null,null,null,null,null,null,null,null,null,null,null,null,null,null,null,null,null,null,null,null,null,null,null,null,null,null,null,null,null,null,null,null,null,null,null,null,null,null,null,null,null,null,null,null,null,null,null,null,null,null,null,null,null,null,null,null,null,null,null,null,null,null,null,null,null,null,null,null,null,null,null,null,null,null,null,null,null,null,null,null,null,null,null,null,null,null,null,null,null,null,null,null,null,null,null,null,null,null,null,null,null,null,null,null,null,null,null,null,null,null,null,null,null,null,null,null,null,null,null,null,null,null,null,null,null,null,null,null,null,null,null,null,null,null,null,null,null,null,null,null,null,null,null,null,null,null,null,null,null,null,null,null,null,null,null,null,null,null,null,null,null,null,null,null,null,null,null,null,null,null,null,null,null,null,null,null,null,null,null,null,null,null,null,null,null,null,null,null,null,null,null,null,null,null,null,null,null,null,null,null,null,null,null,null,null,null,null,null,null,null,null,null,null,null,null,null,null,null,null,null,null,null,null,null,null,null,null,null,null,null,null,null,null,null,null,null,null,null,null,null,null,null,null,null,null,null,null,null,null,null,null,null,null,null,null,null,null,null,null,null,null,null,null,null,null,null,null,null,null,0,0,0,0,0,""]
[]
[null,null,null,null,null,"Итого присутствовало",null,null,{"$f":"COUNTIF(I6:I16,\"п\")","v":0},{"$f":"COUNTIF(J6:J16,\"п\")","v":0},{"$f":"COUNTIF(K6:K16,\"п\")","v":0},{"$f":"COUNTIF(L6:L16,\"п\")","v":0},0,0,0,0,0,0,0,0,0,0,0,0,0,0,0,0,0,0,0,0,0,0,0,0,0,0,0,0,0,0,0,0,0,0,0,0,0,0,0,0,0,0,0,0,0,0,0,0,0,0,0,0,0,0,0,0,0,0,0,0,0,0,0,{"$f":"COUNTIF(BX6:BX16,\"п\")","v":0},0,0,0,0,0,0,0,0,0,0,0,0,0,0,0,0,0,0,0,0,0,0,0,0,0,0,0,0,0,0,0,0,0,0,0,0,0,0,0,0,0,0,0,0,0,0,0,0,0,0,0,0,0,0,0,0,0,0,0,0,0,0,0,{"$f":"COUNTIF(EJ6:EJ16,\"п\")","v":0},0,0,0,0,0,0,0,0,0,0,0,0,0,0,0,0,0,0,0,0,0,0,0,0,0,0,0,0,0,0,0,0,0,0,0,0,0,0,0,0,0,0,0,0,0,0,0,0,0,0,0,0,0,0,0,0,0,0,0,0,0,0,0,{"$f":"COUNTIF(GV6:GV16,\"п\")","v":0},0,0,0,0,0,0,0,0,0,0,0,0,0,0,0,0,0,0,0,0,0,0,0,0,0,0,0,0,0,0,0,0,0,0,0,0,0,0,0,0,0,0,0,0,0,0,0,0,0,0,0,0,0,0,0,0,0,0,0,0,0,0,0,{"$f":"COUNTIF(JH6:JH16,\"п\")","v":0},0,0,0,0,0,0,0,0,0,0,0,0,0,0,0,0,0,0,0,0,0,{"$f":"AVERAGE(KD6:KD16)","v":0},{"$f":"AVERAGE(KE6:KE16)","v":0},{"$f":"AVERAGE(KF6:KF16)","v":0},{"$f":"AVERAGE(KG6:KG16)","v":0},{"$f":"AVERAGE(KH6:KH16)","v":0},{"$f":"IFERROR(AVERAGE(KI6:KI16),\"\")","v":""}]
[]
[null,11,{"$f":"VLOOKUP(B20,[1]!Таблица4[#Data],7)","v":12},{"$f":"CONCATENATE(LEFT([1]список!B16),LEFT([1]список!C16),LEFT([1]список!D16))","v":"НАС"},{"$f":"VLOOKUP(B20,[1]!Таблица4[#Data],5)","v":"м"},{"$f":"VLOOKUP(B20,[1]!Таблица4[#Data],6)","v":"5-6 лет"},{"$f":"VLOOKUP(B20,[1]!Таблица4[#Data],8)","v":"ЗПР"},{"$f":"VLOOKUP(B20,[1]!Таблица4[#Data],9)","v":"Монсики"},null,null,null,null,null,null,null,null,null,null,null,null,null,null,null,null,null,null,null,null,null,null,null,null,null,null,null,null,null,null,null,null,null,null,null,null,null,null,null,null,null,null,null,null,null,null,null,null,null,null,null,null,null,null,null,null,null,null,null,null,null,null,null,null,null,null,null,null,null,null,null,null,null,null,null,null,null,null,null,null,null,null,null,null,null,null,null,null,null,null,null,null,null,null,null,null,null,null,null,null,null,null,null,null,null,null,null,null,null,null,null,null,null,null,null,null,null,null,null,null,null,null,null,null,null,null,null,null,null,null,null,null,null,null,null,null,null,null,null,null,null,null,null,null,null,null,null,null,null,null,null,null,null,null,null,null,null,null,null,null,null,null,null,null,null,null,null,null,null,null,null,null,null,null,null,null,null,null,null,null,null,null,null,null,null,null,null,null,null,null,null,null,null,null,null,null,null,null,null,null,null,null,null,null,null,null,null,null,null,null,null,null,null,null,null,null,null,null,null,null,null,null,null,null,null,null,null,null,null,null,null,null,null,null,null,null,null,null,null,null,null,null,null,null,null,null,null,null,null,null,null,null,null,null,null,null,null,null,null,null,null,null,null,null,null,null,null,null,null,null,null,null,null,null,null,null,null,null,null,null,null,{"$f":"COUNTIF(I20:KC20,\"п\")","v":0},{"$f":"COUNTIF(I20:KC20,\"н\")","v":0},{"$f":"COUNTIF(I20:KC20,\"б\")","v":0},0,0,""]
[null,12,{"$f":"VLOOKUP(B21,[1]!Таблица4[#Data],7)","v":12},{"$f":"CONCATENATE(LEFT([1]список!B17),LEFT([1]список!C17),LEFT([1]список!D17))","v":"ВАА"},{"$f":"VLOOKUP(B21,[1]!Таблица4[#Data],5)","v":"м"},{"$f":"VLOOKUP(B21,[1]!Таблица4[#Data],6)","v":"5-6 лет"},{"$f":"VLOOKUP(B21,[1]!Таблица4[#Data],8)","v":"ЗПР"},{"$f":"VLOOKUP(B21,[1]!Таблица4[#Data],9)","v":"Монсики"},null,null,null,null,null,null,null,null,null,null,null,null,null,null,null,null,null,null,null,null,null,null,null,null,null,null,null,null,null,null,null,null,null,null,null,null,null,null,null,null,null,null,null,null,null,null,null,null,null,null,null,null,null,null,null,null,null,null,null,null,null,null,null,null,null,null,null,null,null,null,null,null,null,null,null,null,null,null,null,null,null,null,null,null,null,null,null,null,null,null,null,null,null,null,null,null,null,null,null,null,null,null,null,null,null,null,null,null,null,null,null,null,null,null,null,null,null,null,null,null,null,null,null,null,null,null,null,null,null,null,null,null,null,null,null,null,null,null,null,null,null,null,null,null,null,null,null,null,null,null,null,null,null,null,null,null,null,null,null,null,null,null,null,null,null,null,null,null,null,null,null,null,null,null,null,null,null,null,null,null,null,null,null,null,null,null,null,null,null,null,null,null,null,null,null,null,null,null,null,null,null,null,null,null,null,null,null,null,null,null,null,null,null,null,null,null,null,null,null,null,null,null,null,null,null,null,null,null,null,null,null,null,null,null,null,null,null,null,null,null,null,null,null,null,null,null,null,null,null,null,null,null,null,null,null,null,null,null,null,null,null,null,null,null,null,null,null,null,null,null,null,null,null,null,null,null,null,null,null,null,null,{"$f":"COUNTIF(I21:KC21,\"п\")","v":0},{"$f":"COUNTIF(I21:KC21,\"н\")","v":0},{"$f":"COUNTIF(I21:KC21,\"б\")","v":0},0,0,""]
[null,13,{"$f":"VLOOKUP(B22,[1]!Таблица4[#Data],7)","v":12},{"$f":"CONCATENATE(LEFT([1]список!B18),LEFT([1]список!C18),LEFT([1]список!D18))","v":"СГА"},{"$f":"VLOOKUP(B22,[1]!Таблица4[#Data],5)","v":"д"},{"$f":"VLOOKUP(B22,[1]!Таблица4[#Data],6)","v":"5-6 лет"},{"$f":"VLOOKUP(B22,[1]!Таблица4[#Data],8)","v":"ЗПР"},{"$f":"VLOOKUP(B22,[1]!Таблица4[#Data],9)","v":"Монсики"},null,null,null,null,null,null,null,null,null,null,null,null,null,null,null,null,null,null,null,null,null,null,null,null,null,null,null,null,null,null,null,null,null,null,null,null,null,null,null,null,null,null,null,null,null,null,null,null,null,null,null,null,null,null,null,null,null,null,null,null,null,null,null,null,null,null,null,null,null,null,null,null,null,null,null,null,null,null,null,null,null,null,null,null,null,null,null,null,null,null,null,null,null,null,null,null,null,null,null,null,null,null,null,null,null,null,null,null,null,null,null,null,null,null,null,null,null,null,null,null,null,null,null,null,null,null,null,null,null,null,null,null,null,null,null,null,null,null,null,null,null,null,null,null,null,null,null,null,null,null,null,null,null,null,null,null,null,null,null,null,null,null,null,null,null,null,null,null,null,null,null,null,null,null,null,null,null,null,null,null,null,null,null,null,null,null,null,null,null,null,null,null,null,null,null,null,null,null,null,null,null,null,null,null,null,null,null,null,null,null,null,null,null,null,null,null,null,null,null,null,null,null,null,null,null,null,null,null,null,null,null,null,null,null,null,null,null,null,null,null,null,null,null,null,null,null,null,null,null,null,null,null,null,null,null,null,null,null,null,null,null,null,null,null,null,null,null,null,null,null,null,null,null,null,null,null,null,null,null,null,null,{"$f":"COUNTIF(I22:KC22,\"п\")","v":0},{"$f":"COUNTIF(I22:KC22,\"н\")","v":0},{"$f":"COUNTIF(I22:KC22,\"б\")","v":0},0,0,""]
[null,14,{"$f":"VLOOKUP(B23,[1]!Таблица4[#Data],7)","v":12},{"$f":"CONCATENATE(LEFT([1]список!B19),LEFT([1]список!C19),LEFT([1]список!D19))","v":"ККС"},{"$f":"VLOOKUP(B23,[1]!Таблица4[#Data],5)","v":"д"},{"$f":"VLOOKUP(B23,[1]!Таблица4[#Data],6)","v":"5-6 лет"},{"$f":"VLOOKUP(B23,[1]!Таблица4[#Data],8)","v":"ЗПР"},{"$f":"VLOOKUP(B23,[1]!Таблица4[#Data],9)","v":"Монсики"},null,null,null,null,null,null,null,null,null,null,null,null,null,null,null,null,null,null,null,null,null,null,null,null,null,null,null,null,null,null,null,null,null,null,null,null,null,null,null,null,null,null,null,null,null,null,null,null,null,null,null,null,null,null,null,null,null,null,null,null,null,null,null,null,null,null,null,null,null,null,null,null,null,null,null,null,null,null,null,null,null,null,null,null,null,null,null,null,null,null,null,null,null,null,null,null,null,null,null,null,null,null,null,null,null,null,null,null,null,null,null,null,null,null,null,null,null,null,null,null,null,null,null,null,null,null,null,null,null,null,null,null,null,null,null,null,null,null,null,null,null,null,null,null,null,null,null,null,null,null,null,null,null,null,null,null,null,null,null,null,null,null,null,null,null,null,null,null,null,null,null,null,null,null,null,null,null,null,null,null,null,null,null,null,null,null,null,null,null,null,null,null,null,null,null,null,null,null,null,null,null,null,null,null,null,null,null,null,null,null,null,null,null,null,null,null,null,null,null,null,null,null,null,null,null,null,null,null,null,null,null,null,null,null,null,null,null,null,null,null,null,null,null,null,null,null,null,null,null,null,null,null,null,null,null,null,null,null,null,null,null,null,null,null,null,null,null,null,null,null,null,null,null,null,null,null,null,null,null,null,null,{"$f":"COUNTIF(I23:KC23,\"п\")","v":0},{"$f":"COUNTIF(I23:KC23,\"н\")","v":0},{"$f":"COUNTIF(I23:KC23,\"б\")","v":0},0,0,""]
[null,15,{"$f":"VLOOKUP(B24,[1]!Таблица4[#Data],7)","v":12},{"$f":"CONCATENATE(LEFT([1]список!B20),LEFT([1]список!C20),LEFT([1]список!D20))","v":"ЖМК"},{"$f":"VLOOKUP(B24,[1]!Таблица4[#Data],5)","v":"м"},{"$f":"VLOOKUP(B24,[1]!Таблица4[#Data],6)","v":"5-6 лет"},{"$f":"VLOOKUP(B24,[1]!Таблица4[#Data],8)","v":"ЗПР"},{"$f":"VLOOKUP(B24,[1]!Таблица4[#Data],9)","v":"Монсики"},null,null,null,null,null,null,null,null,null,null,null,null,null,null,null,null,null,null,null,null,null,null,null,null,null,null,null,null,null,null,null,null,null,null,null,null,null,null,null,null,null,null,null,null,null,null,null,null,null,null,null,null,null,null,null,null,null,null,null,null,null,null,null,null,null,null,null,null,null,null,null,null,null,null,null,null,null,null,null,null,null,null,null,null,null,null,null,null,null,null,null,null,null,null,null,null,null,null,null,null,null,null,null,null,null,null,null,null,null,null,null,null,null,null,null,null,null,null,null,null,null,null,null,null,null,null,null,null,null,null,null,null,null,null,null,null,null,null,null,null,null,null,null,null,null,null,null,null,null,null,null,null,null,null,null,null,null,null,null,null,null,null,null,null,null,null,null,null,null,null,null,null,null,null,null,null,null,null,null,null,null,null,null,null,null,null,null,null,null,null,null,null,null,null,null,null,null,null,null,null,null,null,null,null,null,null,null,null,null,null,null,null,null,null,null,null,null,null,null,null,null,null,null,null,null,null,null,null,null,null,null,null,null,null,null,null,null,null,null,null,null,null,null,null,null,null,null,null,null,null,null,null,null,null,null,null,null,null,null,null,null,null,null,null,null,null,null,null,null,null,null,null,null,null,null,null,null,null,null,null,null,{"$f":"COUNTIF(I24:KC24,\"п\")","v":0},{"$f":"COUNTIF(I24:KC24,\"н\")","v":0},{"$f":"COUNTIF(I24:KC24,\"б\")","v":0},0,0,""]
[null,16,{"$f":"VLOOKUP(B25,[1]!Таблица4[#Data],7)","v":12},{"$f":"CONCATENATE(LEFT([1]список!B21),LEFT([1]список!C21),LEFT([1]список!D21))","v":"ЛАИ"},{"$f":"VLOOKUP(B25,[1]!Таблица4[#Data],5)","v":"д"},{"$f":"VLOOKUP(B25,[1]!Таблица4[#Data],6)","v":"5-6 лет"},{"$f":"VLOOKUP(B25,[1]!Таблица4[#Data],8)","v":"ЗПР"},{"$f":"VLOOKUP(B25,[1]!Таблица4[#Data],9)","v":"Монсики"}]
[null,17,{"$f":"VLOOKUP(B26,[1]!Таблица4[#Data],7)","v":12},{"$f":"CONCATENATE(LEFT([1]список!B22),LEFT([1]список!C22),LEFT([1]список!D22))","v":"ПАГ"},{"$f":"VLOOKUP(B26,[1]!Таблица4[#Data],5)","v":"д"},{"$f":"VLOOKUP(B26,[1]!Таблица4[#Data],6)","v":"5-6 лет"},{"$f":"VLOOKUP(B26,[1]!Таблица4[#Data],8)","v":"ЗПР"},{"$f":"VLOOKUP(B26,[1]!Таблица4[#Data],9)","v":"Монсики"}]
[null,18,{"$f":"VLOOKUP(B27,[1]!Таблица4[#Data],7)","v":12},{"$f":"CONCATENATE(LEFT([1]список!B23),LEFT([1]список!C23),LEFT([1]список!D23))","v":"ЕДИ"},{"$f":"VLOOKUP(B27,[1]!Таблица4[#Data],5)","v":"д"},{"$f":"VLOOKUP(B27,[1]!Таблица4[#Data],6)","v":"5-6 лет"},{"$f":"VLOOKUP(B27,[1]!Таблица4[#Data],8)","v":"ЗПР"},{"$f":"VLOOKUP(B27,[1]!Таблица4[#Data],9)","v":"Монсики"},null,null,null,null,null,null,null,null,null,null,null,null,null,null,null,null,null,null,null,null,null,null,null,null,null,null,null,null,null,null,null,null,null,null,null,null,null,null,null,null,null,null,null,null,null,null,null,null,null,null,null,null,null,null,null,null,null,null,null,null,null,null,null,null,null,null,null,null,null,null,null,null,null,null,null,null,null,null,null,null,null,null,null,null,null,null,null,null,null,null,null,null,null,null,null,null,null,null,null,null,null,null,null,null,null,null,null,null,null,null,null,null,null,null,null,null,null,null,null,null,null,null,null,null,null,null,null,null,null,null,null,null,null,null,null,null,null,null,null,null,null,null,null,null,null,null,null,null,null,null,null,null,null,null,null,null,null,null,null,null,null,null,null,null,null,null,null,null,null,null,null,null,null,null,null,null,null,null,null,null,null,null,null,null,null,null,null,null,null,null,null,null,null,null,null,null,null,null,null,null,null,null,null,null,null,null,null,null,null,null,null,null,null,null,null,null,null,null,null,null,null,null,null,null,null,null,null,null,null,null,null,null,null,null,null,null,null,null,null,null,null,null,null,null,null,null,null,null,null,null,null,null,null,null,null,null,null,null,null,null,null,null,null,null,null,null,null,null,null,null,null,null,null,null,null,null,null,null,null,null,null,{"$f":"COUNTIF(I27:KC27,\"п\")","v":0},{"$f":"COUNTIF(I27:KC27,\"н\")","v":0},{"$f":"COUNTIF(I27:KC27,\"б\")","v":0},0,0,""]
[null,19,{"$f":"VLOOKUP(B28,[1]!Таблица4[#Data],7)","v":12},{"$f":"CONCATENATE(LEFT([1]список!B24),LEFT([1]список!C24),LEFT([1]список!D24))","v":"ЕДИ"},{"$f":"VLOOKUP(B28,[1]!Таблица4[#Data],5)","v":"м"},{"$f":"VLOOKUP(B28,[1]!Таблица4[#Data],6)","v":"5-6 лет"},{"$f":"VLOOKUP(B28,[1]!Таблица4[#Data],8)","v":"ЗПР"},{"$f":"VLOOKUP(B28,[1]!Таблица4[#Data],9)","v":"Монсики"}]
[null,20,{"$f":"VLOOKUP(B29,[1]!Таблица4[#Data],7)","v":12},{"$f":"CONCATENATE(LEFT([1]список!B25),LEFT([1]список!C25),LEFT([1]список!D25))","v":"ЕДИ"},{"$f":"VLOOKUP(B29,[1]!Таблица4[#Data],5)","v":"м"},{"$f":"VLOOKUP(B29,[1]!Таблица4[#Data],6)","v":"5-6 лет"},{"$f":"VLOOKUP(B29,[1]!Таблица4[#Data],8)","v":"ЗПР"},{"$f":"VLOOKUP(B29,[1]!Таблица4[#Data],9)","v":"Монсики"},null,null,null,null,null,null,null,null,null,null,null,null,null,null,null,null,null,null,null,null,null,null,null,null,null,null,null,null,null,null,null,null,null,null,null,null,null,null,null,null,null,null,null,null,null,null,null,null,null,null,null,null,null,null,null,null,null,null,null,null,null,null,null,null,null,null,null,null,null,null,null,null,null,null,null,null,null,null,null,null,null,null,null,null,null,null,null,null,null,null,null,null,null,null,null,null,null,null,null,null,null,null,null,null,null,null,null,null,null,null,null,null,null,null,null,null,null,null,null,null,null,null,null,null,null,null,null,null,null,null,null,null,null,null,null,null,null,null,null,null,null,null,null,null,null,null,null,null,null,null,null,null,null,null,null,null,null,null,null,null,null,null,null,null,null,null,null,null,null,null,null,null,null,null,null,null,null,null,null,null,null,null,null,null,null,null,null,null,null,null,null,null,null,null,null,null,null,null,null,null,null,null,null,null,null,null,null,null,null,null,null,null,null,null,null,null,null,null,null,null,null,null,null,null,null,null,null,null,null,null,null,null,null,null,null,null,null,null,null,null,null,null,null,null,null,null,null,null,null,null,null,null,null,null,null,null,null,null,null,null,null,null,null,null,null,null,null,null,null,null,null,null,null,null,null,null,null,null,null,null,null,{"$f":"COUNTIF(I29:KC29,\"п\")","v":0},{"$f":"COUNTIF(I29:KC29,\"н\")","v":0},{"$f":"COUNTIF(I29:KC29,\"б\")","v":0},0,0,""]
[]
[null,null,null,null,null,"Итого присутствовало",null,null,{"$f":"COUNTIF(I20:I29,\"п\")","v":0},0,0,0,0,0,0,0,0,0,0,0,0,0,0,0,0,0,0,0,0,0,0,0,0,0,0,0,0,0,null,{"$f":"COUNTIF(AN20:AN29,\"п\")","v":0},0,0,0,0,0,0,0,0,0,0,0,0,0,0,0,0,0,0,0,0,0,0,0,0,0,0,0,0,0,0,null,{"$f":"COUNTIF(BT20:BT29,\"п\")","v":0},0,0,0,0,0,0,0,0,0,0,0,0,0,0,0,0,0,0,0,0,0,0,0,0,0,0,0,0,0,null,{"$f":"COUNTIF(CY20:CY29,\"п\")","v":0},0,0,0,0,0,0,0,0,0,0,0,0,0,0,0,0,0,0,0,0,0,0,0,0,0,0,0,0,0,0,null,{"$f":"COUNTIF(EE20:EE29,\"п\")","v":0},0,0,0,0,0,0,0,0,0,0,0,0,0,0,0,0,0,0,0,0,null,null,null,null,null,null,null,null,null,null,null,null,null,null,null,null,null,null,null,null,null,null,null,null,null,null,null,null,null,null,null,null,null,null,null,null,null,null,null,null,null,null,null,null,null,null,null,null,null,null,null,null,null,null,null,null,null,null,null,null,null,null,null,null,null,null,null,null,null,null,null,null,null,null,null,null,null,null,null,null,null,null,null,null,null,null,null,null,null,null,null,null,null,null,null,null,null,null,null,null,null,{"$f":"COUNTIF(IW20:IW29,\"п\")","v":0},null,{"$f":"COUNTIF(IY20:IY29,\"п\")","v":0},{"$f":"COUNTIF(IZ20:IZ29,\"п\")","v":0},{"$f":"COUNTIF(JA20:JA29,\"п\")","v":0},{"$f":"COUNTIF(JB20:JB29,\"п\")","v":0},null,null,null,null,null,null,null,null,null,null,null,null,null,{"$f":"COUNTIF(JP20:JP29,\"п\")","v":0},0,0,0,0,0,0,0,0,0,0,0,null,{"$f":"COUNTIF(KC20:KC29,\"п\")","v":0},{"$f":"AVERAGE(KD20:KD29)","v":0},{"$f":"AVERAGE(KE20:KE29)","v":0},0,0,0,{"$f":"IFERROR(AVERAGE(KI20:KI29),\"\")","v":""}]
[]
[null,21,{"$f":"VLOOKUP(B33,[1]!Таблица4[#Data],7)","v":14},{"$f":"CONCATENATE(LEFT([1]список!B24),LEFT([1]список!C24),LEFT([1]список!D24))","v":"ЕДИ"},{"$f":"VLOOKUP(B33,[1]!Таблица4[#Data],5)","v":"м"},{"$f":"VLOOKUP(B33,[1]!Таблица4[#Data],6)","v":"4-5 лет"},{"$f":"VLOOKUP(B33,[1]!Таблица4[#Data],8)","v":"РАС"},{"$f":"VLOOKUP(B33,[1]!Таблица4[#Data],9)","v":"Песочная страна"},null,null,null,null,null,null,null,null,null,null,null,null,null,null,null,null,null,null,null,null,null,null,null,null,null,null,null,null,null,null,null,null,null,null,null,null,null,null,null,null,null,null,null,null,null,null,null,null,null,null,null,null,null,null,null,null,null,null,null,null,null,null,null,null,null,null,null,null,null,null,null,null,null,null,null,null,null,null,null,null,null,null,null,null,null,null,null,null,null,null,null,null,null,null,null,null,null,null,null,null,null,null,null,null,null,null,null,null,null,null,null,null,null,null,null,null,null,null,null,null,null,null,null,null,null,null,null,null,null,null,null,null,null,null,null,null,null,null,null,null,null,null,null,null,null,null,null,null,null,null,null,null,null,null,null,null,null,null,null,null,null,null,null,null,null,null,null,null,null,null,null,null,null,null,null,null,null,null,null,null,null,null,null,null,null,null,null,null,null,null,null,null,null,null,null,null,null,null,null,null,null,null,null,null,null,null,null,null,null,null,null,null,null,null,null,null,null,null,null,null,null,null,null,null,null,null,null,null,null,null,null,null,null,null,null,null,null,null,null,null,null,null,null,null,null,null,null,null,null,null,null,null,null,null,null,null,null,null,null,null,null,null,null,null,null,null,null,null,null,null,null,null,null,null,null,null,null,null,null,null,null,{"$f":"COUNTIF(I33:KC33,\"п\")","v":0},{"$f":"COUNTIF(I33:KC33,\"н\")","v":0},{"$f":"COUNTIF(I33:KC33,\"б\")","v":0},{"$f":"SUM(KD33:KF33)","v":0},{"$f":"SUM(KE33:KF33)","v":0},""]
[null,22,{"$f":"VLOOKUP(B34,[1]!Таблица4[#Data],7)","v":14},{"$f":"CONCATENATE(LEFT([1]список!B25),LEFT([1]список!C25),LEFT([1]список!D25))","v":"ЕДИ"},{"$f":"VLOOKUP(B34,[1]!Таблица4[#Data],5)","v":"м"},{"$f":"VLOOKUP(B34,[1]!Таблица4[#Data],6)","v":"4-5 лет"},{"$f":"VLOOKUP(B34,[1]!Таблица4[#Data],8)","v":"РАС"},{"$f":"VLOOKUP(B34,[1]!Таблица4[#Data],9)","v":"Песочная страна"},null,null,null,null,null,null,null,null,null,null,null,null,null,null,null,null,null,null,null,null,null,null,null,null,null,null,null,null,null,null,null,null,null,null,null,null,null,null,null,null,null,null,null,null,null,null,null,null,null,null,null,null,null,null,null,null,null,null,null,null,null,null,null,null,null,null,null,null,null,null,null,null,null,null,null,null,null,null,null,null,null,null,null,null,null,null,null,null,null,null,null,null,null,null,null,null,null,null,null,null,null,null,null,null,null,null,null,null,null,null,null,null,null,null,null,null,null,null,null,null,null,null,null,null,null,null,null,null,null,null,null,null,null,null,null,null,null,null,null,null,null,null,null,null,null,null,null,null,null,null,null,null,null,null,null,null,null,null,null,null,null,null,null,null,null,null,null,null,null,null,null,null,null,null,null,null,null,null,null,null,null,null,null,null,null,null,null,null,null,null,null,null,null,null,null,null,null,null,null,null,null,null,null,null,null,null,null,null,null,null,null,null,null,null,null,null,null,null,null,null,null,null,null,null,null,null,null,null,null,null,null,null,null,null,null,null,null,null,null,null,null,null,null,null,null,null,null,null,null,null,null,null,null,null,null,null,null,null,null,null,null,null,null,null,null,null,null,null,null,null,null,null,null,null,null,null,null,null,null,null,null,0,0,0,0,0,""]
[null,23,{"$f":"VLOOKUP(B35,[1]!Таблица4[#Data],7)","v":14},{"$f":"CONCATENATE(LEFT([1]список!B26),LEFT([1]список!C26),LEFT([1]список!D26))","v":"ЕДИ"},{"$f":"VLOOKUP(B35,[1]!Таблица4[#Data],5)","v":"м"},{"$f":"VLOOKUP(B35,[1]!Таблица4[#Data],6)","v":"4-5 лет"},{"$f":"VLOOKUP(B35,[1]!Таблица4[#Data],8)","v":"РАС"},{"$f":"VLOOKUP(B35,[1]!Таблица4[#Data],9)","v":"Песочная страна"},null,null,null,null,null,null,null,null,null,null,null,null,null,null,null,null,null,null,null,null,null,null,null,null,null,null,null,null,null,null,null,null,null,null,null,null,null,null,null,null,null,null,null,null,null,null,null,null,null,null,null,null,null,null,null,null,null,null,null,null,null,null,null,null,null,null,null,null,null,null,null,null,null,null,null,null,null,null,null,null,null,null,null,null,null,null,null,null,null,null,null,null,null,null,null,null,null,null,null,null,null,null,null,null,null,null,null,null,null,null,null,null,null,null,null,null,null,null,null,null,null,null,null,null,null,null,null,null,null,null,null,null,null,null,null,null,null,null,null,null,null,null,null,null,null,null,null,null,null,null,null,null,null,null,null,null,null,null,null,null,null,null,null,null,null,null,null,null,null,null,null,null,null,null,null,null,null,null,null,null,null,null,null,null,null,null,null,null,null,null,null,null,null,null,null,null,null,null,null,null,null,null,null,null,null,null,null,null,null,null,null,null,null,null,null,null,null,null,null,null,null,null,null,null,null,null,null,null,null,null,null,null,null,null,null,null,null,null,null,null,null,null,null,null,null,null,null,null,null,null,null,null,null,null,null,null,null,null,null,null,null,null,null,null,null,null,null,null,null,null,null,null,null,null,null,null,null,null,null,null,null,0,0,0,0,0,""]
[null,24,{"$f":"VLOOKUP(B36,[1]!Таблица4[#Data],7)","v":14},{"$f":"CONCATENATE(LEFT([1]список!B27),LEFT([1]список!C27),LEFT([1]список!D27))","v":"ЕДИ"},{"$f":"VLOOKUP(B36,[1]!Таблица4[#Data],5)","v":"м"},{"$f":"VLOOKUP(B36,[1]!Таблица4[#Data],6)","v":"4-5 лет"},{"$f":"VLOOKUP(B36,[1]!Таблица4[#Data],8)","v":"РАС"},{"$f":"VLOOKUP(B36,[1]!Таблица4[#Data],9)","v":"Песочная страна"},null,null,null,null,null,null,null,null,null,null,null,null,null,null,null,null,null,null,null,null,null,null,null,null,null,null,null,null,null,null,null,null,null,null,null,null,null,null,null,null,null,null,null,null,null,null,null,null,null,null,null,null,null,null,null,null,null,null,null,null,null,null,null,null,null,null,null,null,null,null,null,null,null,null,null,null,null,null,null,null,null,null,null,null,null,null,null,null,null,null,null,null,null,null,null,null,null,null,null,null,null,null,null,null,null,null,null,null,null,null,null,null,null,null,null,null,null,null,null,null,null,null,null,null,null,null,null,null,null,null,null,null,null,null,null,null,null,null,null,null,null,null,null,null,null,null,null,null,null,null,null,null,null,null,null,null,null,null,null,null,null,null,null,null,null,null,null,null,null,null,null,null,null,null,null,null,null,null,null,null,null,null,null,null,null,null,null,null,null,null,null,null,null,null,null,null,null,null,null,null,null,null,null,null,null,null,null,null,null,null,null,null,null,null,null,null,null,null,null,null,null,null,null,null,null,null,null,null,null,null,null,null,null,null,null,null,null,null,null,null,null,null,null,null,null,null,null,null,null,null,null,null,null,null,null,null,null,null,null,null,null,null,null,null,null,null,null,null,null,null,null,null,null,null,null,null,null,null,null,null,null,0,0,0,0,0,""]
[null,25,{"$f":"VLOOKUP(B37,[1]!Таблица4[#Data],7)","v":14},{"$f":"CONCATENATE(LEFT([1]список!B28),LEFT([1]список!C28),LEFT([1]список!D28))","v":"ЕДИ"},{"$f":"VLOOKUP(B37,[1]!Таблица4[#Data],5)","v":"м"},{"$f":"VLOOKUP(B37,[1]!Таблица4[#Data],6)","v":"4-5 лет"},{"$f":"VLOOKUP(B37,[1]!Таблица4[#Data],8)","v":"РАС"},{"$f":"VLOOKUP(B37,[1]!Таблица4[#Data],9)","v":"Песочная страна"},null,null,null,null,null,null,null,null,null,null,null,null,null,null,null,null,null,null,null,null,null,null,null,null,null,null,null,null,null,null,null,null,null,null,null,null,null,null,null,null,null,null,null,null,null,null,null,null,null,null,null,null,null,null,null,null,null,null,null,null,null,null,null,null,null,null,null,null,null,null,null,null,null,null,null,null,null,null,null,null,null,null,null,null,null,null,null,null,null,null,null,null,null,null,null,null,null,null,null,null,null,null,null,null,null,null,null,null,null,null,null,null,null,null,null,null,null,null,null,null,null,null,null,null,null,null,null,null,null,null,null,null,null,null,null,null,null,null,null,null,null,null,null,null,null,null,null,null,null,null,null,null,null,null,null,null,null,null,null,null,null,null,null,null,null,null,null,null,null,null,null,null,null,null,null,null,null,null,null,null,null,null,null,null,null,null,null,null,null,null,null,null,null,null,null,null,null,null,null,null,null,null,null,null,null,null,null,null,null,null,null,null,null,null,null,null,null,null,null,null,null,null,null,null,null,null,null,null,null,null,null,null,null,null,null,null,null,null,null,null,null,null,null,null,null,null,null,null,null,null,null,null,null,null,null,null,null,null,null,null,null,null,null,null,null,null,null,null,null,null,null,null,null,null,null,null,null,null,null,null,null,0,0,0,0,0,""]
[null,26,{"$f":"VLOOKUP(B38,[1]!Таблица4[#Data],7)","v":14},{"$f":"CONCATENATE(LEFT([1]список!B29),LEFT([1]список!C29),LEFT([1]список!D29))","v":"ЕДИ"},{"$f":"VLOOKUP(B38,[1]!Таблица4[#Data],5)","v":"м"},{"$f":"VLOOKUP(B38,[1]!Таблица4[#Data],6)","v":"4-5 лет"},{"$f":"VLOOKUP(B38,[1]!Таблица4[#Data],8)","v":"РАС"},{"$f":"VLOOKUP(B38,[1]!Таблица4[#Data],9)","v":"Песочная страна"},null,null,null,null,null,null,null,null,null,null,null,null,null,null,null,null,null,null,null,null,null,null,null,null,null,null,null,null,null,null,null,null,null,null,null,null,null,null,null,null,null,null,null,null,null,null,null,null,null,null,null,null,null,null,null,null,null,null,null,null,null,null,null,null,null,null,null,null,null,null,null,null,null,null,null,null,null,null,null,null,null,null,null,null,null,null,null,null,null,null,null,null,null,null,null,null,null,null,null,null,null,null,null,null,null,null,null,null,null,null,null,null,null,null,null,null,null,null,null,null,null,null,null,null,null,null,null,null,null,null,null,null,null,null,null,null,null,null,null,null,null,null,null,null,null,null,null,null,null,null,null,null,null,null,null,null,null,null,null,null,null,null,null,null,null,null,null,null,null,null,null,null,null,null,null,null,null,null,null,null,null,null,null,null,null,null,null,null,null,null,null,null,null,null,null,null,null,null,null,null,null,null,null,null,null,null,null,null,null,null,null,null,null,null,null,null,null,null,null,null,null,null,null,null,null,null,null,null,null,null,null,null,null,null,null,null,null,null,null,null,null,null,null,null,null,null,null,null,null,null,null,null,null,null,null,null,null,null,null,null,null,null,null,null,null,null,null,null,null,null,null,null,null,null,null,null,null,null,null,null,null,0,0,0,0,0,""]
[null,27,{"$f":"VLOOKUP(B39,[1]!Таблица4[#Data],7)","v":14},{"$f":"CONCATENATE(LEFT([1]список!B30),LEFT([1]список!C30),LEFT([1]список!D30))","v":"ЕДИ"},{"$f":"VLOOKUP(B39,[1]!Таблица4[#Data],5)","v":"м"},{"$f":"VLOOKUP(B39,[1]!Таблица4[#Data],6)","v":"4-5 лет"},{"$f":"VLOOKUP(B39,[1]!Таблица4[#Data],8)","v":"РАС"},{"$f":"VLOOKUP(B39,[1]!Таблица4[#Data],9)","v":"Песочная страна"},null,null,null,null,null,null,null,null,null,null,null,null,null,null,null,null,null,null,null,null,null,null,null,null,null,null,null,null,null,null,null,null,null,null,null,null,null,null,null,null,null,null,null,null,null,null,null,null,null,null,null,null,null,null,null,null,null,null,null,null,null,null,null,null,null,null,null,null,null,null,null,null,null,null,null,null,null,null,null,null,null,null,null,null,null,null,null,null,null,null,null,null,null,null,null,null,null,null,null,null,null,null,null,null,null,null,null,null,null,null,null,null,null,null,null,null,null,null,null,null,null,null,null,null,null,null,null,null,null,null,null,null,null,null,null,null,null,null,null,null,null,null,null,null,null,null,null,null,null,null,null,null,null,null,null,null,null,null,null,null,null,null,null,null,null,null,null,null,null,null,null,null,null,null,null,null,null,null,null,null,null,null,null,null,null,null,null,null,null,null,null,null,null,null,null,null,null,null,null,null,null,null,null,null,null,null,null,null,null,null,null,null,null,null,null,null,null,null,null,null,null,null,null,null,null,null,null,null,null,null,null,null,null,null,null,null,null,null,null,null,null,null,null,null,null,null,null,null,null,null,null,null,null,null,null,null,null,null,null,null,null,null,null,null,null,null,null,null,null,null,null,null,null,null,null,null,null,null,null,null,null,0,0,0,0,0,""]
[null,28,{"$f":"VLOOKUP(B40,[1]!Таблица4[#Data],7)","v":14},{"$f":"CONCATENATE(LEFT([1]список!B31),LEFT([1]список!C31),LEFT([1]список!D31))","v":"ЕДИ"},{"$f":"VLOOKUP(B40,[1]!Таблица4[#Data],5)","v":"м"},{"$f":"VLOOKUP(B40,[1]!Таблица4[#Data],6)","v":"4-5 лет"},{"$f":"VLOOKUP(B40,[1]!Таблица4[#Data],8)","v":"РАС"},{"$f":"VLOOKUP(B40,[1]!Таблица4[#Data],9)","v":"Песочная страна"},null,null,null,null,null,null,null,null,null,null,null,null,null,null,null,null,null,null,null,null,null,null,null,null,null,null,null,null,null,null,null,null,null,null,null,null,null,null,null,null,null,null,null,null,null,null,null,null,null,null,null,null,null,null,null,null,null,null,null,null,null,null,null,null,null,null,null,null,null,null,null,null,null,null,null,null,null,null,null,null,null,null,null,null,null,null,null,null,null,null,null,null,null,null,null,null,null,null,null,null,null,null,null,null,null,null,null,null,null,null,null,null,null,null,null,null,null,null,null,null,null,null,null,null,null,null,null,null,null,null,null,null,null,null,null,null,null,null,null,null,null,null,null,null,null,null,null,null,null,null,null,null,null,null,null,null,null,null,null,null,null,null,null,null,null,null,null,null,null,null,null,null,null,null,null,null,null,null,null,null,null,null,null,null,null,null,null,null,null,null,null,null,null,null,null,null,null,null,null,null,null,null,null,null,null,null,null,null,null,null,null,null,null,null,null,null,null,null,null,null,null,null,null,null,null,null,null,null,null,null,null,null,null,null,null,null,null,null,null,null,null,null,null,null,null,null,null,null,null,null,null,null,null,null,null,null,null,null,null,null,null,null,null,null,null,null,null,null,null,null,null,null,null,null,null,null,null,null,null,null,null,0,0,0,0,0,""]
[null,29,{"$f":"VLOOKUP(B41,[1]!Таблица4[#Data],7)","v":14},{"$f":"CONCATENATE(LEFT([1]список!B32),LEFT([1]список!C32),LEFT([1]список!D32))","v":"ЕДИ"},{"$f":"VLOOKUP(B41,[1]!Таблица4[#Data],5)","v":"м"},{"$f":"VLOOKUP(B41,[1]!Таблица4[#Data],6)","v":"4-5 лет"},{"$f":"VLOOKUP(B41,[1]!Таблица4[#Data],8)","v":"РАС"},{"$f":"VLOOKUP(B41,[1]!Таблица4[#Data],9)","v":"Песочная страна"},null,null,null,null,null,null,null,null,null,null,null,null,null,null,null,null,null,null,null,null,null,null,null,null,null,null,null,null,null,null,null,null,null,null,null,null,null,null,null,null,null,null,null,null,null,null,null,null,null,null,null,null,null,null,null,null,null,null,null,null,null,null,null,null,null,null,null,null,null,null,null,null,null,null,null,null,null,null,null,null,null,null,null,null,null,null,null,null,null,null,null,null,null,null,null,null,null,null,null,null,null,null,null,null,null,null,null,null,null,null,null,null,null,null,null,null,null,null,null,null,null,null,null,null,null,null,null,null,null,null,null,null,null,null,null,null,null,null,null,null,null,null,null,null,null,null,null,null,null,null,null,null,null,null,null,null,null,null,null,null,null,null,null,null,null,null,null,null,null,null,null,null,null,null,null,null,null,null,null,null,null,null,null,null,null,null,null,null,null,null,null,null,null,null,null,null,null,null,null,null,null,null,null,null,null,null,null,null,null,null,null,null,null,null,null,null,null,null,null,null,null,null,null,null,null,null,null,null,null,null,null,null,null,null,null,null,null,null,null,null,null,null,null,null,null,null,null,null,null,null,null,null,null,null,null,null,null,null,null,null,null,null,null,null,null,null,null,null,null,null,null,null,null,null,null,null,null,null,null,null,null,0,0,0,0,0,""]
[null,30,{"$f":"VLOOKUP(B42,[1]!Таблица4[#Data],7)","v":14},{"$f":"CONCATENATE(LEFT([1]список!B33),LEFT([1]список!C33),LEFT([1]список!D33))","v":"ЕДИ"},{"$f":"VLOOKUP(B42,[1]!Таблица4[#Data],5)","v":"м"},{"$f":"VLOOKUP(B42,[1]!Таблица4[#Data],6)","v":"4-5 лет"},{"$f":"VLOOKUP(B42,[1]!Таблица4[#Data],8)","v":"РАС"},{"$f":"VLOOKUP(B42,[1]!Таблица4[#Data],9)","v":"Песочная страна"},null,null,null,null,null,null,null,null,null,null,null,null,null,null,null,null,null,null,null,null,null,null,null,null,null,null,null,null,null,null,null,null,null,null,null,null,null,null,null,null,null,null,null,null,null,null,null,null,null,null,null,null,null,null,null,null,null,null,null,null,null,null,null,null,null,null,null,null,null,null,null,null,null,null,null,null,null,null,null,null,null,null,null,null,null,null,null,null,null,null,null,null,null,null,null,null,null,null,null,null,null,null,null,null,null,null,null,null,null,null,null,null,null,null,null,null,null,null,null,null,null,null,null,null,null,null,null,null,null,null,null,null,null,null,null,null,null,null,null,null,null,null,null,null,null,null,null,null,null,null,null,null,null,null,null,null,null,null,null,null,null,null,null,null,null,null,null,null,null,null,null,null,null,null,null,null,null,null,null,null,null,null,null,null,null,null,null,null,null,null,null,null,null,null,null,null,null,null,null,null,null,null,null,null,null,null,null,null,null,null,null,null,null,null,null,null,null,null,null,null,null,null,null,null,null,null,null,null,null,null,null,null,null,null,null,null,null,null,null,null,null,null,null,null,null,null,null,null,null,null,null,null,null,null,null,null,null,null,null,null,null,null,null,null,null,null,null,null,null,null,null,null,null,null,null,null,null,null,null,null,null,0,0,0,0,0,""]
[]
[null,null,null,null,null,"Итого присутствовало",null,null,{"$f":"COUNTIF(I33:I42,\"п\")","v":0},0,0,0,0,0,0,0,0,0,0,0,0,0,0,0,0,0,0,0,0,0,0,0,0,0,0,0,0,0,null,{"$f":"COUNTIF(AN33:AN42,\"п\")","v":0},0,0,0,0,0,0,0,0,0,0,0,0,0,0,0,0,0,0,0,0,0,0,0,0,0,0,0,0,0,0,null,{"$f":"COUNTIF(BT33:BT42,\"п\")","v":0},0,0,0,0,0,0,0,0,0,0,0,0,0,0,0,0,0,0,0,0,0,0,0,0,0,0,0,0,0,null,{"$f":"COUNTIF(CY33:CY42,\"п\")","v":0},0,0,0,0,0,0,0,0,0,0,0,0,0,0,0,0,0,0,0,0,0,0,0,0,0,0,0,0,0,0,null,{"$f":"COUNTIF(EE33:EE42,\"п\")","v":0},0,0,0,0,0,0,0,0,0,0,0,0,0,0,0,0,0,0,0,0,null,null,null,null,null,null,null,null,null,null,null,null,null,null,null,null,null,null,null,null,null,null,null,null,null,null,null,null,null,null,null,null,null,null,null,null,null,null,null,null,null,null,null,null,null,null,null,null,null,null,null,null,null,null,null,null,null,null,null,null,null,null,null,null,null,null,null,null,null,null,null,null,null,null,null,null,null,null,null,null,null,null,null,null,null,null,null,null,null,null,null,null,null,null,null,null,null,null,null,null,null,{"$f":"COUNTIF(IW33:IW42,\"п\")","v":0},null,{"$f":"COUNTIF(IY33:IY42,\"п\")","v":0},{"$f":"COUNTIF(IZ33:IZ42,\"п\")","v":0},{"$f":"COUNTIF(JA33:JA42,\"п\")","v":0},{"$f":"COUNTIF(JB33:JB42,\"п\")","v":0},null,null,null,null,null,null,null,null,null,null,null,null,null,{"$f":"COUNTIF(JP33:JP42,\"п\")","v":0},0,0,0,0,0,0,0,0,0,0,0,null,{"$f":"COUNTIF(KC33:KC42,\"п\")","v":0},{"$f":"AVERAGE(KD33:KD42)","v":0},{"$f":"AVERAGE(KE33:KE42)","v":0},0,0,0,{"$f":"IFERROR(AVERAGE(KI33:KI42),\"\")","v":""}]
[null,"январь"]
[null,"февраль",null,null,"всего в день присутствовало",null,null,null,{"$f":"COUNTIF(I6:I44,\"п\")","v":0},0,{"$f":"COUNTIF(K6:K44,\"п\")","v":0},0,0,0,0,0,0,0,0,0,0,0,0,0,0,0,0,0,0,0,0,0,0,0,0,0,0,0,null,{"$f":"COUNTIF(AN6:AN44,\"п\")","v":0},0,0,0,0,0,0,0,0,0,0,0,0,0,0,0,0,0,0,0,0,0,0,0,0,0,0,0,0,0,0,null,{"$f":"COUNTIF(BT6:BT44,\"п\")","v":0},0,0,0,0,0,0,0,0,0,0,0,0,0,0,0,0,0,0,0,0,0,0,0,0,0,0,0,0,0,null,{"$f":"COUNTIF(CY6:CY44,\"п\")","v":0},0,0,0,0,0,0,0,0,0,0,0,0,0,0,0,0,0,0,0,0,0,0,0,0,0,0,0,0,0,0,null,{"$f":"COUNTIF(EE6:EE44,\"п\")","v":0},0,0,0,0,0,0,0,0,0,0,0,0,0,0,0,0,0,0,0,0,null,null,null,null,null,null,null,null,null,null,null,null,null,null,null,null,null,null,null,null,null,null,null,null,null,null,null,null,null,null,null,null,null,null,null,null,null,null,null,null,null,null,null,null,null,null,null,null,null,null,null,null,null,null,null,null,null,null,null,null,null,null,null,null,null,null,null,null,null,null,null,null,null,null,null,null,null,null,null,null,null,null,null,null,null,null,null,null,null,null,null,null,null,null,null,null,null,null,null,null,null,{"$f":"COUNTIF(IW6:IW44,\"п\")","v":0},null,{"$f":"COUNTIF(IY6:IY44,\"п\")","v":0},{"$f":"COUNTIF(IZ6:IZ44,\"п\")","v":0},{"$f":"COUNTIF(JA6:JA44,\"п\")","v":0},{"$f":"COUNTIF(JB6:JB44,\"п\")","v":0},null,null,null,null,null,null,null,null,null,null,null,null,null,{"$f":"COUNTIF(JP6:JP44,\"п\")","v":0},0,0,0,0,0,0,0,0,0,0,0,null,{"$f":"COUNTIF(KC6:KC44,\"п\")","v":0}]
[null,"март",null,null,"всего в день отсутствовало",null,null,null,{"$f":"COUNTIF(I7:I44,\"н\")","v":0},0,{"$f":"COUNTIF(K7:K44,\"н\")","v":0},0,0,0,0,0,0,0,0,0,0,0,0,0,0,0,0,0,0,0,0,0,0,0,0,0,0,0,null,{"$f":"COUNTIF(AN7:AN44,\"н\")","v":0},0,0,0,0,0,0,0,0,0,0,0,0,0,0,0,0,0,0,0,0,0,0,0,0,0,0,0,0,0,0,null,{"$f":"COUNTIF(BT7:BT44,\"н\")","v":0},0,0,0,0,0,0,0,0,0,0,0,0,0,0,0,0,0,0,0,0,0,0,0,0,0,0,0,0,0,null,{"$f":"COUNTIF(CY7:CY44,\"н\")","v":0},0,0,0,0,0,0,0,0,0,0,0,0,0,0,0,0,0,0,0,0,0,0,0,0,0,0,0,0,0,0,null,{"$f":"COUNTIF(EE7:EE44,\"н\")","v":0},0,0,0,0,0,0,0,0,0,0,0,0,0,0,0,0,0,0,0,0,null,null,null,null,null,null,null,null,null,null,null,null,null,null,null,null,null,null,null,null,null,null,null,null,null,null,null,null,null,null,null,null,null,null,null,null,null,null,null,null,null,null,null,null,null,null,null,null,null,null,null,null,null,null,null,null,null,null,null,null,null,null,null,null,null,null,null,null,null,null,null,null,null,null,null,null,null,null,null,null,null,null,null,null,null,null,null,null,null,null,null,null,null,null,null,null,null,null,null,null,null,{"$f":"COUNTIF(IW7:IW44,\"н\")","v":0},null,{"$f":"COUNTIF(IY7:IY44,\"н\")","v":0},{"$f":"COUNTIF(IZ7:IZ44,\"н\")","v":0},{"$f":"COUNTIF(JA7:JA44,\"н\")","v":0},{"$f":"COUNTIF(JB7:JB44,\"н\")","v":0},null,null,null,null,null,null,null,null,null,null,null,null,null,{"$f":"COUNTIF(JP7:JP44,\"н\")","v":0},0,0,0,0,0,0,0,0,0,0,0,null,{"$f":"COUNTIF(KC7:KC44,\"н\")","v":0}]
[null,"апрель"]
[null,"май",null,null,"количество занятий в день",null,null,null,{"$f":"COUNTIF(I6:I44,\">0\")","v":0},0,{"$f":"COUNTIF(K6:K44,\">0\")","v":0},0,0,0,0,0,0,0,0,0,0,0,0,0,0,0,0,0,0,0,0,0,0,0,0,0,0,0,0,0,0,0,0,0,0,0,0,0,0,0,0,0,0,0,0,0,0,0,0,0,0,0,0,0,0,0,0,0,0,0,0,0,{"$f":"COUNTIF(BU6:BU44,\">0\")","v":0},0,0,0,0,0,0,0,0,0,0,0,0,0,0,0,0,0,0,0,0,0,0,0,0,0,0,0,0,0,0,0,0,0,0,0,0,0,0,0,0,0,0,0,0,0,0,0,0,0,0,0,0,0,0,0,0,0,0,0,0,0,0,0,{"$f":"COUNTIF(EG6:EG44,\">0\")","v":0},0,0,0,0,0,0,0,0,0,0,0,0,0,0,0,0,0,0,0,0,0,0,0,0,0,0,0,0,0,0,0,0,0,0,0,0,0,0,0,0,0,0,0,0,0,0,0,0,0,0,0,0,0,0,0,0,0,0,0,0,0,0,0,{"$f":"COUNTIF(GS6:GS44,\">0\")","v":0},0,0,0,0,0,0,0,0,0,0,0,0,0,0,0,0,0,0,0,0,0,0,0,0,0,0,0,0,0,0,0,0,0,0,0,0,0,0,0,0,0,0,0,0,0,0,0,0,0,0,0,0,0,0,0,0,0,0,0,0,0,0,0,{"$f":"COUNTIF(JE6:JE44,\">0\")","v":0},0,0,0,0,0,0,0,0,0,0,0,0,0,0,0,0,0,0,0,0,0,0,0,0]
[null,"июнь"]
[null,"июль"]
[null,"август"]
[null,"сентябрь"]
[null,"октябрь"]
[null,"ноябрь"]
[null,"декабрь"]

{"sheet":"диаграммы","index":2,"n_rows":0,"n_cols":0,"rows_kept":0,"cut":false,"hidden":false,"merged":[]}

{"sheet":"праздники 2021-2050","index":3,"n_rows":28,"n_cols":2,"rows_kept":28,"cut":false,"hidden":false,"merged":[]}
[]
[null,"Праздники"]
[null,"2021-11-04"]
[null,"2021-11-05"]
[null,"2021-11-06"]
[null,"2021-11-07"]
[null,"2021-12-31"]
[null,"2022-01-01"]
[null,"2022-01-02"]
[null,"2022-01-03"]
[null,"2022-01-04"]
[null,"2022-01-05"]
[null,"2022-01-06"]
[null,"2022-01-07"]
[null,"2022-01-08"]
[null,"2022-01-09"]
[null,"2022-02-23"]
[null,"2022-03-05"]
[null,"2022-03-06"]
[null,"2022-03-07"]
[null,"2022-03-08"]
[null,"2022-04-30"]
[null,"2022-05-01"]
[null,"2022-05-02"]
[null,"2022-05-03"]
[null,"2022-05-07"]
[null,"2022-05-08"]
[null,"2022-05-09"]